[Event "Titled Tuesday Blitz March 28 Early 2023"]
[White "Meissner, Felix"]
[Black "Levine, David"]
[WhiteFideId "24671827"]
[BlackFideId "2011611"]
[WhiteElo "2350"]
[BlackElo "2113"]
[Result "1-0"]
[Round "02"]
[TimeControl "180+2"]
[Date "2023.03.28"]
[WhiteClock "0:01:33"]
[BlackClock "0:00:03"]

1. e4 {[%clk 0:02:56]}  e5 {[%clk 0:02:59]} 2. Nf3 {[%clk 0:02:55]}  Nc6 {[%clk 0:02:59]} 3. d4 {[%clk 0:02:55]}  exd4 {[%clk 0:02:58]} 4. Nxd4 {[%clk 0:02:53]}  Nf6 {[%clk 0:02:58]} 5. Nc3 {[%clk 0:02:52]}  Bb4 {[%clk 0:02:57]} 6. Nxc6 {[%clk 0:02:53]}  bxc6 {[%clk 0:02:56]} 7. Bd3 {[%clk 0:02:53]}  d5 {[%clk 0:02:56]} 8. exd5 {[%clk 0:02:54]}  cxd5 {[%clk 0:02:56]} 9. O-O {[%clk 0:02:54]}  O-O {[%clk 0:02:56]} 10. h3 {[%clk 0:02:53]}  h6 {[%clk 0:02:48]} 11. Qf3 {[%clk 0:02:53]}  c6 {[%clk 0:02:47]} 12. Bf4 {[%clk 0:02:52]}  Bd6 {[%clk 0:02:43]} 13. Rfe1 {[%clk 0:02:51]}  Rb8 {[%clk 0:02:40]} 14. b3 {[%clk 0:02:50]}  Be6 {[%clk 0:02:32]} 15. Bxd6 {[%clk 0:02:48]}  Qxd6 {[%clk 0:02:32]} 16. Qg3 {[%clk 0:02:49]}  Qxg3 {[%clk 0:02:30]} 17. fxg3 {[%clk 0:02:50]}  c5 {[%clk 0:02:17]} 18. g4 {[%clk 0:02:47]}  c4 {[%clk 0:02:11]} 19. Bf1 {[%clk 0:02:45]}  a5 {[%clk 0:02:02]} 20. Ne2 {[%clk 0:02:42]}  a4 {[%clk 0:01:58]} 21. Nd4 {[%clk 0:02:42]}  cxb3 {[%clk 0:01:39]} 22. axb3 {[%clk 0:02:43]}  axb3 {[%clk 0:01:39]} 23. cxb3 {[%clk 0:02:43]}  Bd7 {[%clk 0:01:33]} 24. Rab1 {[%clk 0:02:30]}  Rb4 {[%clk 0:01:32]} 25. Nc2 {[%clk 0:02:30]}  Rb6 {[%clk 0:01:24]} 26. b4 {[%clk 0:02:27]}  Ne4 {[%clk 0:01:22]} 27. Nd4 {[%clk 0:02:25]}  Rfb8 {[%clk 0:01:18]} 28. b5 {[%clk 0:02:21]}  Nc3 {[%clk 0:01:17]} 29. Rb4 {[%clk 0:02:20]}  Kf8 {[%clk 0:01:00]} 30. Rc1 {[%clk 0:02:19]}  Ne4 {[%clk 0:00:57]} 31. Bd3 {[%clk 0:02:16]}  Nd6 {[%clk 0:00:54]} 32. Rc5 {[%clk 0:02:15]}  Be6 {[%clk 0:00:33]} 33. Ra4 {[%clk 0:02:07]}  g6 {[%clk 0:00:30]} 34. Ra7 {[%clk 0:01:55]}  R8b7 {[%clk 0:00:20]} 35. Ra6 {[%clk 0:01:49]}  Ke7 {[%clk 0:00:14]} 36. Ra8 {[%clk 0:01:45]}  Kf6 {[%clk 0:00:13]} 37. Kf2 {[%clk 0:01:43]}  Ke5 {[%clk 0:00:12]} 38. Ke3 {[%clk 0:01:43]}  f5 {[%clk 0:00:09]} 39. gxf5 {[%clk 0:01:42]}  gxf5 {[%clk 0:00:09]} 40. g3 {[%clk 0:01:35]}  h5 {[%clk 0:00:08]} 41. Rc6 {[%clk 0:01:34]}  h4 {[%clk 0:00:04]} 42. Rf8 {[%clk 0:01:33]}  hxg3 {[%clk 0:00:03]} 43. Nf3# {[%clk 0:01:33]} 1-0


[Site "https://www.chess.com"]

[Event "Titled Tuesday Blitz March 28 Early 2023"]
[White "Acikel, Mert"]
[Black "Balla, Tamas-Kristof"]
[WhiteFideId "12956465"]
[BlackFideId "1208497"]
[WhiteElo "2097"]
[BlackElo "2334"]
[Result "1-0"]
[Round "02"]
[TimeControl "180+2"]
[Date "2023.03.28"]
[WhiteClock "0:00:12"]
[BlackClock "0:00:07"]

1. e4 {[%clk 0:02:59]}  c6 {[%clk 0:02:59]} 2. Nc3 {[%clk 0:02:59]}  d5 {[%clk 0:02:59]} 3. Nf3 {[%clk 0:02:59]}  Bg4 {[%clk 0:02:58]} 4. h3 {[%clk 0:03:00]}  Bxf3 {[%clk 0:02:57]} 5. Qxf3 {[%clk 0:03:00]}  e6 {[%clk 0:02:56]} 6. Be2 {[%clk 0:03:00]}  Nf6 {[%clk 0:02:54]} 7. O-O {[%clk 0:02:57]}  Be7 {[%clk 0:02:46]} 8. d3 {[%clk 0:02:46]}  O-O {[%clk 0:02:40]} 9. Bf4 {[%clk 0:02:40]}  c5 {[%clk 0:02:20]} 10. Rfe1 {[%clk 0:02:31]}  Nc6 {[%clk 0:02:18]} 11. Qg3 {[%clk 0:02:20]}  Re8 {[%clk 0:02:01]} 12. exd5 {[%clk 0:02:07]}  exd5 {[%clk 0:01:55]} 13. Nb5 {[%clk 0:01:56]}  Rc8 {[%clk 0:01:25]} 14. c3 {[%clk 0:01:56]}  Bf8 {[%clk 0:00:28]} 15. Bf3 {[%clk 0:01:23]}  a6 {[%clk 0:00:28]} 16. Nd6 {[%clk 0:00:58]}  Bxd6 {[%clk 0:00:26]} 17. Bxd6 {[%clk 0:00:59]}  Qd7 {[%clk 0:00:19]} 18. Bxc5 {[%clk 0:00:52]}  Ne5 {[%clk 0:00:19]} 19. Bd4 {[%clk 0:00:49]}  Ng6 {[%clk 0:00:07]} 20. Qg5 {[%clk 0:00:10]}  Re6 {[%clk 0:00:07]} 21. Bxf6 {[%clk 0:00:08]}  Rxf6 {[%clk 0:00:06]} 22. Bg4 {[%clk 0:00:07]}  Qc7 {[%clk 0:00:04]} 23. Bxc8 {[%clk 0:00:07]}  Qxc8 {[%clk 0:00:05]} 24. Qxd5 {[%clk 0:00:07]}  h6 {[%clk 0:00:04]} 25. Re2 {[%clk 0:00:07]}  Nf4 {[%clk 0:00:04]} 26. Qe4 {[%clk 0:00:06]}  Nxe2+ {[%clk 0:00:02]} 27. Qxe2 {[%clk 0:00:06]}  Qf5 {[%clk 0:00:03]} 28. Re1 {[%clk 0:00:06]}  Re6 {[%clk 0:00:03]} 29. Qd2 {[%clk 0:00:06]}  Rxe1+ {[%clk 0:00:02]} 30. Qxe1 {[%clk 0:00:07]}  Qxd3 {[%clk 0:00:03]} 31. Qe3 {[%clk 0:00:06]}  Qd1+ {[%clk 0:00:03]} 32. Kh2 {[%clk 0:00:07]}  Qd6+ {[%clk 0:00:04]} 33. g3 {[%clk 0:00:07]}  Qf6 {[%clk 0:00:04]} 34. Qd4 {[%clk 0:00:07]}  Qc6 {[%clk 0:00:05]} 35. h4 {[%clk 0:00:06]}  g6 {[%clk 0:00:05]} 36. Qd3 {[%clk 0:00:04]}  h5 {[%clk 0:00:05]} 37. b3 {[%clk 0:00:04]}  Qb6 {[%clk 0:00:06]} 38. Qe3 {[%clk 0:00:04]}  Qc6 {[%clk 0:00:06]} 39. c4 {[%clk 0:00:05]}  Qf6 {[%clk 0:00:05]} 40. Qc5 {[%clk 0:00:03]}  Qa1 {[%clk 0:00:06]} 41. Qc8+ {[%clk 0:00:03]}  Kg7 {[%clk 0:00:06]} 42. Qxb7 {[%clk 0:00:04]}  Qxa2 {[%clk 0:00:07]} 43. Qf3 {[%clk 0:00:04]}  Qa3 {[%clk 0:00:07]} 44. Qc3+ {[%clk 0:00:04]}  Kh7 {[%clk 0:00:07]} 45. c5 {[%clk 0:00:05]}  Qa2 {[%clk 0:00:06]} 46. Kg2 {[%clk 0:00:06]}  Qb1 {[%clk 0:00:06]} 47. c6 {[%clk 0:00:06]}  Qe4+ {[%clk 0:00:06]} 48. Qf3 {[%clk 0:00:07]}  Qe7 {[%clk 0:00:06]} 49. Qc3 {[%clk 0:00:07]}  Qc7 {[%clk 0:00:07]} 50. Qc4 {[%clk 0:00:07]}  a5 {[%clk 0:00:07]} 51. Kf3 {[%clk 0:00:06]}  Kg7 {[%clk 0:00:07]} 52. Ke4 {[%clk 0:00:07]}  Kh7 {[%clk 0:00:08]} 53. Kd5 {[%clk 0:00:06]}  Kg7 {[%clk 0:00:08]} 54. Kc5 {[%clk 0:00:06]}  Kf8 {[%clk 0:00:05]} 55. Qd5 {[%clk 0:00:06]}  Qa7+ {[%clk 0:00:05]} 56. Kb5 {[%clk 0:00:07]}  Qb8+ {[%clk 0:00:05]} 57. Kxa5 {[%clk 0:00:07]}  Qa7+ {[%clk 0:00:06]} 58. Kb5 {[%clk 0:00:08]}  Qb8+ {[%clk 0:00:06]} 59. Kc4 {[%clk 0:00:08]}  Qc7 {[%clk 0:00:06]} 60. Qd7 {[%clk 0:00:09]}  Qe5 {[%clk 0:00:04]} 61. Qd8+ {[%clk 0:00:09]}  Kg7 {[%clk 0:00:04]} 62. Qd4 {[%clk 0:00:10]}  Qxd4+ {[%clk 0:00:04]} 63. Kxd4 {[%clk 0:00:10]}  Kf6 {[%clk 0:00:05]} 64. c7 {[%clk 0:00:11]}  Ke7 {[%clk 0:00:06]} 65. c8=Q {[%clk 0:00:12]}  Kf6 {[%clk 0:00:06]} 66. Qc4 {[%clk 0:00:12]}  Kg7 {[%clk 0:00:07]} 1-0


[Site "https://www.chess.com"]

[Event "Titled Tuesday Blitz March 28 Early 2023"]
[White "dorpato"]
[Black "Kopczynski, Michal"]
[BlackFideId "1124200"]
[WhiteElo "2045"]
[BlackElo "2212"]
[Result "0-1"]
[Round "02"]
[TimeControl "180+2"]
[Date "2023.03.28"]
[WhiteClock "0:00:20"]
[BlackClock "0:01:20"]

1. d4 {[%clk 0:02:58]}  Nf6 {[%clk 0:02:59]} 2. Nf3 {[%clk 0:02:58]}  g6 {[%clk 0:03:00]} 3. e3 {[%clk 0:02:58]}  Bg7 {[%clk 0:03:00]} 4. Be2 {[%clk 0:02:59]}  O-O {[%clk 0:03:00]} 5. b3 {[%clk 0:02:59]}  d6 {[%clk 0:03:01]} 6. Bb2 {[%clk 0:02:59]}  Nfd7 {[%clk 0:02:59]} 7. O-O {[%clk 0:02:59]}  Nc6 {[%clk 0:02:59]} 8. c4 {[%clk 0:02:59]}  e5 {[%clk 0:03:00]} 9. Nc3 {[%clk 0:02:58]}  f5 {[%clk 0:02:58]} 10. dxe5 {[%clk 0:02:46]}  Ndxe5 {[%clk 0:02:57]} 11. Qd2 {[%clk 0:02:41]}  f4 {[%clk 0:02:54]} 12. Nd5 {[%clk 0:02:38]}  fxe3 {[%clk 0:02:52]} 13. fxe3 {[%clk 0:02:36]}  Bf5 {[%clk 0:02:32]} 14. Nd4 {[%clk 0:02:28]}  Nxd4 {[%clk 0:02:20]} 15. exd4 {[%clk 0:02:17]}  Nc6 {[%clk 0:02:20]} 16. Bf3 {[%clk 0:01:50]}  Kh8 {[%clk 0:02:00]} 17. Ne3 {[%clk 0:01:44]}  Bd7 {[%clk 0:01:45]} 18. d5 {[%clk 0:01:34]}  Ne5 {[%clk 0:01:43]} 19. Bxe5 {[%clk 0:01:17]}  Bxe5 {[%clk 0:01:44]} 20. Rae1 {[%clk 0:01:15]}  Qg5 {[%clk 0:01:42]} 21. Qd3 {[%clk 0:01:05]}  Rae8 {[%clk 0:01:38]} 22. Nc2 {[%clk 0:00:39]}  Bf5 {[%clk 0:01:29]} 23. Qd1 {[%clk 0:00:37]}  Bxc2 {[%clk 0:01:21]} 24. Qxc2 {[%clk 0:00:36]}  Bxh2+ {[%clk 0:01:20]} 25. Kxh2 {[%clk 0:00:27]}  Rxe1 {[%clk 0:01:20]} 26. Qc3+ {[%clk 0:00:21]}  Qe5+ {[%clk 0:01:19]} 27. Qxe5+ {[%clk 0:00:20]}  Rxe5 {[%clk 0:01:20]} 0-1


[Site "https://www.chess.com"]

[Event "Titled Tuesday Blitz March 28 Early 2023"]
[White "Thecourseoisildur"]
[Black "Maranhao,Jose Renato Ruiz"]
[BlackFideId "2135175"]
[WhiteElo "2429"]
[BlackElo "1970"]
[Result "1-0"]
[Round "02"]
[TimeControl "180+2"]
[Date "2023.03.28"]
[WhiteClock "0:00:54"]
[BlackClock "0:00:03"]

1. e4 {[%clk 0:03:00]}  g6 {[%clk 0:02:56]} 2. d4 {[%clk 0:03:00]}  Bg7 {[%clk 0:02:56]} 3. Nc3 {[%clk 0:02:59]}  a6 {[%clk 0:02:57]} 4. Bf4 {[%clk 0:02:55]}  b5 {[%clk 0:02:56]} 5. a4 {[%clk 0:02:55]}  b4 {[%clk 0:02:54]} 6. Nd5 {[%clk 0:02:55]}  d6 {[%clk 0:02:50]} 7. Nxb4 {[%clk 0:02:53]}  c5 {[%clk 0:02:31]} 8. dxc5 {[%clk 0:02:39]}  Bxb2 {[%clk 0:02:27]} 9. Nd5 {[%clk 0:02:39]}  Qa5+ {[%clk 0:02:12]} 10. Bd2 {[%clk 0:02:22]}  Qxc5 {[%clk 0:02:10]} 11. Rb1 {[%clk 0:02:08]}  Bd4 {[%clk 0:01:52]} 12. Bb4 {[%clk 0:01:42]}  Bxf2+ {[%clk 0:01:44]} 13. Ke2 {[%clk 0:01:41]}  Bxg1 {[%clk 0:01:04]} 14. Bxc5 {[%clk 0:01:40]}  Bg4+ {[%clk 0:01:04]} 15. Kd2 {[%clk 0:01:33]}  Bxd1 {[%clk 0:01:02]} 16. Bxg1 {[%clk 0:01:33]}  Nf6 {[%clk 0:00:20]} 17. Nxf6+ {[%clk 0:01:21]}  exf6 {[%clk 0:00:19]} 18. Kxd1 {[%clk 0:01:22]}  Nd7 {[%clk 0:00:13]} 19. Bd3 {[%clk 0:01:16]}  O-O {[%clk 0:00:13]} 20. Bd4 {[%clk 0:01:16]}  Rfb8 {[%clk 0:00:10]} 21. Kd2 {[%clk 0:01:15]}  Ne5 {[%clk 0:00:08]} 22. Rhf1 {[%clk 0:01:10]}  a5 {[%clk 0:00:04]} 23. Rxb8+ {[%clk 0:01:04]}  Rxb8 {[%clk 0:00:05]} 24. Rxf6 {[%clk 0:00:59]}  Rb4 {[%clk 0:00:04]} 25. Rxd6 {[%clk 0:00:54]}  Nc4+ {[%clk 0:00:02]} 26. Bxc4 {[%clk 0:00:54]}  Rxc4 {[%clk 0:00:03]} 27. Rd8# {[%clk 0:00:54]} 1-0


[Site "https://www.chess.com"]

[Event "Titled Tuesday Blitz March 28 Early 2023"]
[White "Nan, M K Khine Hlyan"]
[Black "Melikhov, Evgeny V."]
[WhiteFideId "13002899"]
[BlackFideId "4122046"]
[WhiteElo "1943"]
[BlackElo "2158"]
[Result "0-1"]
[Round "02"]
[TimeControl "180+2"]
[Date "2023.03.28"]
[WhiteClock "0:01:32"]
[BlackClock "0:01:16"]

1. e4 {[%clk 0:03:00]}  c5 {[%clk 0:02:58]} 2. Nf3 {[%clk 0:03:01]}  d6 {[%clk 0:02:59]} 3. d4 {[%clk 0:03:01]}  cxd4 {[%clk 0:02:59]} 4. Nxd4 {[%clk 0:03:01]}  Nf6 {[%clk 0:03:00]} 5. Nc3 {[%clk 0:03:01]}  a6 {[%clk 0:03:00]} 6. Be2 {[%clk 0:03:01]}  e6 {[%clk 0:03:00]} 7. Be3 {[%clk 0:03:00]}  Be7 {[%clk 0:03:00]} 8. O-O {[%clk 0:03:01]}  O-O {[%clk 0:03:00]} 9. Kh1 {[%clk 0:03:01]}  Qc7 {[%clk 0:02:58]} 10. f4 {[%clk 0:02:59]}  Nc6 {[%clk 0:02:58]} 11. Nf3 {[%clk 0:02:54]}  b5 {[%clk 0:02:55]} 12. a3 {[%clk 0:02:53]}  Bb7 {[%clk 0:02:50]} 13. Qe1 {[%clk 0:02:52]}  Na5 {[%clk 0:02:47]} 14. Qf2 {[%clk 0:02:51]}  Nc4 {[%clk 0:02:45]} 15. Bxc4 {[%clk 0:02:51]}  Qxc4 {[%clk 0:02:44]} 16. Rad1 {[%clk 0:02:50]}  Nxe4 {[%clk 0:02:42]} 17. Nxe4 {[%clk 0:02:48]}  Qxe4 {[%clk 0:02:33]} 18. Ng5 {[%clk 0:02:38]}  Qg6 {[%clk 0:02:01]} 19. Bd4 {[%clk 0:02:20]}  Bxg5 {[%clk 0:01:48]} 20. fxg5 {[%clk 0:02:19]}  Qxg5 {[%clk 0:01:48]} 21. Rd3 {[%clk 0:02:11]}  e5 {[%clk 0:01:45]} 22. Rg3 {[%clk 0:02:12]}  Qe7 {[%clk 0:01:43]} 23. Bc3 {[%clk 0:02:08]}  f5 {[%clk 0:01:42]} 24. Rd1 {[%clk 0:02:02]}  f4 {[%clk 0:01:39]} 25. Rh3 {[%clk 0:01:56]}  Rf6 {[%clk 0:01:37]} 26. Qh4 {[%clk 0:01:46]}  h6 {[%clk 0:01:33]} 27. Rhd3 {[%clk 0:01:43]}  f3 {[%clk 0:01:21]} 28. Rxd6 {[%clk 0:01:38]}  fxg2+ {[%clk 0:01:18]} 29. Kg1 {[%clk 0:01:38]}  Rf1+ {[%clk 0:01:17]} 30. Rxf1 {[%clk 0:01:33]}  gxf1=Q+ {[%clk 0:01:17]} 31. Kxf1 {[%clk 0:01:32]}  Qxh4 {[%clk 0:01:16]} 0-1


[Site "https://www.chess.com"]

[Event "Titled Tuesday Blitz March 28 Early 2023"]
[White "Semenova, Alina"]
[Black "Shvedova, Alexandra"]
[WhiteFideId "24113875"]
[BlackFideId "54154782"]
[WhiteElo "1833"]
[BlackElo "2057"]
[Result "0-1"]
[Round "02"]
[TimeControl "180+2"]
[Date "2023.03.28"]
[WhiteClock "0:00:01"]
[BlackClock "0:00:13"]

1. e4 {[%clk 0:03:00]}  c6 {[%clk 0:03:00]} 2. d4 {[%clk 0:02:57]}  d5 {[%clk 0:03:00]} 3. Nd2 {[%clk 0:02:56]}  dxe4 {[%clk 0:02:59]} 4. Nxe4 {[%clk 0:02:57]}  Nf6 {[%clk 0:03:00]} 5. Nxf6+ {[%clk 0:02:54]}  exf6 {[%clk 0:03:00]} 6. Nf3 {[%clk 0:02:49]}  Bd6 {[%clk 0:03:00]} 7. Be2 {[%clk 0:02:47]}  O-O {[%clk 0:02:59]} 8. O-O {[%clk 0:02:47]}  Qc7 {[%clk 0:02:55]} 9. h3 {[%clk 0:02:46]}  Bf5 {[%clk 0:02:54]} 10. Bd3 {[%clk 0:02:42]}  Bxd3 {[%clk 0:02:53]} 11. Qxd3 {[%clk 0:02:42]}  Nd7 {[%clk 0:02:53]} 12. Bd2 {[%clk 0:02:39]}  Rad8 {[%clk 0:02:51]} 13. c4 {[%clk 0:02:19]}  Rfe8 {[%clk 0:02:47]} 14. Rfe1 {[%clk 0:02:19]}  Bf4 {[%clk 0:02:44]} 15. Qc3 {[%clk 0:02:09]}  Nb6 {[%clk 0:02:38]} 16. b3 {[%clk 0:02:06]}  Nc8 {[%clk 0:02:21]} 17. Rad1 {[%clk 0:02:02]}  Bxd2 {[%clk 0:02:18]} 18. Nxd2 {[%clk 0:01:57]}  Nd6 {[%clk 0:02:12]} 19. Qg3 {[%clk 0:01:45]}  Qd7 {[%clk 0:02:08]} 20. Nf3 {[%clk 0:00:57]}  Ne4 {[%clk 0:02:04]} 21. Qf4 {[%clk 0:00:47]}  Nc3 {[%clk 0:02:02]} 22. Rxe8+ {[%clk 0:00:46]}  Rxe8 {[%clk 0:02:01]} 23. Rd2 {[%clk 0:00:38]}  Ne2+ {[%clk 0:01:58]} 24. Rxe2 {[%clk 0:00:38]}  Rxe2 {[%clk 0:01:58]} 25. Qb8+ {[%clk 0:00:38]}  Re8 {[%clk 0:01:54]} 26. Qxa7 {[%clk 0:00:38]}  h6 {[%clk 0:01:49]} 27. a4 {[%clk 0:00:37]}  Qc7 {[%clk 0:01:40]} 28. Qc5 {[%clk 0:00:35]}  b6 {[%clk 0:01:38]} 29. Qf5 {[%clk 0:00:35]}  Qc8 {[%clk 0:01:35]} 30. Qd3 {[%clk 0:00:35]}  Qe6 {[%clk 0:01:33]} 31. b4 {[%clk 0:00:30]}  Qd6 {[%clk 0:01:32]} 32. Qc3 {[%clk 0:00:25]}  Ra8 {[%clk 0:01:27]} 33. a5 {[%clk 0:00:12]}  bxa5 {[%clk 0:01:25]} 34. bxa5 {[%clk 0:00:13]}  Qc7 {[%clk 0:01:24]} 35. Qd3 {[%clk 0:00:11]}  Qxa5 {[%clk 0:01:23]} 36. d5 {[%clk 0:00:10]}  cxd5 {[%clk 0:01:21]} 37. cxd5 {[%clk 0:00:10]}  Qc7 {[%clk 0:01:10]} 38. d6 {[%clk 0:00:09]}  Qd7 {[%clk 0:01:10]} 39. Nd2 {[%clk 0:00:09]}  Rd8 {[%clk 0:01:02]} 40. Nc4 {[%clk 0:00:09]}  Qe6 {[%clk 0:01:02]} 41. Qd4 {[%clk 0:00:06]}  g6 {[%clk 0:00:56]} 42. Kh2 {[%clk 0:00:02]}  Kg7 {[%clk 0:00:55]} 43. Kg1 {[%clk 0:00:02]}  Qd7 {[%clk 0:00:42]} 44. Kh2 {[%clk 0:00:01]}  Qc6 {[%clk 0:00:42]} 45. Kg1 {[%clk 0:00:01]}  h5 {[%clk 0:00:41]} 46. Kh2 {[%clk 0:00:01]}  Qe8 {[%clk 0:00:28]} 47. Kg1 {[%clk 0:00:01]}  Qe1+ {[%clk 0:00:28]} 48. Kh2 {[%clk 0:00:01]}  Qb4 {[%clk 0:00:28]} 49. Kg1 {[%clk 0:00:02]}  Rc8 {[%clk 0:00:24]} 50. d7 {[%clk 0:00:01]}  Rd8 {[%clk 0:00:14]} 51. Nb6 {[%clk 0:00:01]}  Qe1+ {[%clk 0:00:13]} 52. Kh2 {[%clk 0:00:01]}  Qe6 {[%clk 0:00:13]} 0-1


[Site "https://www.chess.com"]

[Event "Titled Tuesday Blitz March 28 Early 2023"]
[White "Urazayev, Arystanbek"]
[Black "Erigaisi Arjun"]
[WhiteFideId "13709810"]
[BlackFideId "35009192"]
[WhiteElo "2479"]
[BlackElo "2737"]
[Result "1-0"]
[Round "03"]
[TimeControl "180+2"]
[Date "2023.03.28"]
[WhiteClock "0:00:20"]
[BlackClock "0:00:14"]

1. d4 {[%clk 0:03:00]}  g6 {[%clk 0:02:59]} 2. c4 {[%clk 0:03:00]}  Bg7 {[%clk 0:02:59]} 3. Nc3 {[%clk 0:03:01]}  d6 {[%clk 0:03:00]} 4. Nf3 {[%clk 0:03:00]}  Nc6 {[%clk 0:02:59]} 5. g3 {[%clk 0:02:55]}  Bd7 {[%clk 0:02:55]} 6. Bg2 {[%clk 0:02:53]}  Qc8 {[%clk 0:02:54]} 7. h4 {[%clk 0:02:53]}  h5 {[%clk 0:02:53]} 8. Ng5 {[%clk 0:02:53]}  Nxd4 {[%clk 0:02:50]} 9. Bf4 {[%clk 0:02:44]}  e5 {[%clk 0:02:43]} 10. Be3 {[%clk 0:02:43]}  Ne7 {[%clk 0:02:42]} 11. Bxd4 {[%clk 0:02:38]}  exd4 {[%clk 0:02:43]} 12. Nd5 {[%clk 0:02:39]}  Nf5 {[%clk 0:02:37]} 13. Qb3 {[%clk 0:02:38]}  c6 {[%clk 0:02:34]} 14. Nf4 {[%clk 0:02:37]}  Qc7 {[%clk 0:02:26]} 15. O-O {[%clk 0:02:26]}  Qb6 {[%clk 0:02:24]} 16. Qc2 {[%clk 0:02:22]}  O-O {[%clk 0:02:19]} 17. Rac1 {[%clk 0:02:06]}  Nxg3 {[%clk 0:01:56]} 18. c5 {[%clk 0:01:44]}  Qxc5 {[%clk 0:01:38]} 19. Qxc5 {[%clk 0:01:42]}  Nxe2+ {[%clk 0:01:38]} 20. Nxe2 {[%clk 0:01:42]}  dxc5 {[%clk 0:01:39]} 21. Rxc5 {[%clk 0:01:39]}  Rad8 {[%clk 0:01:29]} 22. Nf4 {[%clk 0:01:34]}  Rfe8 {[%clk 0:01:29]} 23. Ra5 {[%clk 0:01:25]}  a6 {[%clk 0:01:27]} 24. Rd1 {[%clk 0:01:21]}  Bg4 {[%clk 0:01:26]} 25. Bf3 {[%clk 0:01:16]}  d3 {[%clk 0:01:04]} 26. Bxg4 {[%clk 0:01:14]}  hxg4 {[%clk 0:01:05]} 27. Ra3 {[%clk 0:00:36]}  d2 {[%clk 0:01:01]} 28. Re3 {[%clk 0:00:36]}  Rxe3 {[%clk 0:00:57]} 29. fxe3 {[%clk 0:00:36]}  Bxb2 {[%clk 0:00:58]} 30. Ne4 {[%clk 0:00:29]}  Bc1 {[%clk 0:00:54]} 31. Ne2 {[%clk 0:00:28]}  f5 {[%clk 0:00:50]} 32. Nc5 {[%clk 0:00:24]}  b6 {[%clk 0:00:32]} 33. Nb3 {[%clk 0:00:23]}  c5 {[%clk 0:00:28]} 34. Nbxc1 {[%clk 0:00:21]}  dxc1=Q {[%clk 0:00:29]} 35. Rxc1 {[%clk 0:00:22]}  Rd2 {[%clk 0:00:28]} 36. Nf4 {[%clk 0:00:23]}  Kf7 {[%clk 0:00:27]} 37. a4 {[%clk 0:00:22]}  Ra2 {[%clk 0:00:21]} 38. Rb1 {[%clk 0:00:21]}  c4 {[%clk 0:00:22]} 39. Rxb6 {[%clk 0:00:20]}  c3 {[%clk 0:00:22]} 40. Rc6 {[%clk 0:00:20]}  c2 {[%clk 0:00:22]} 41. Ne2 {[%clk 0:00:19]}  Ke7 {[%clk 0:00:19]} 42. Nc1 {[%clk 0:00:20]}  Rb2 {[%clk 0:00:18]} 43. Kf2 {[%clk 0:00:20]}  Kd7 {[%clk 0:00:18]} 44. Rc4 {[%clk 0:00:21]}  Kd6 {[%clk 0:00:18]} 45. Ne2 {[%clk 0:00:22]}  a5 {[%clk 0:00:16]} 46. Nc1 {[%clk 0:00:21]}  Kd5 {[%clk 0:00:16]} 47. Rc8 {[%clk 0:00:21]}  Ke5 {[%clk 0:00:14]} 48. Nd3+ {[%clk 0:00:20]} 1-0


[Site "https://www.chess.com"]

[Event "Titled Tuesday Blitz March 28 Early 2023"]
[White "Bortnyk, Olexandr"]
[Black "Ohanyan, Emin"]
[WhiteFideId "14120828"]
[BlackFideId "13312022"]
[WhiteElo "2734"]
[BlackElo "2402"]
[Result "1-0"]
[Round "03"]
[TimeControl "180+2"]
[Date "2023.03.28"]
[WhiteClock "0:00:14"]
[BlackClock "0:00:02"]

1. d4 {[%clk 0:03:00]}  c5 {[%clk 0:02:55]} 2. e3 {[%clk 0:02:54]}  d5 {[%clk 0:02:52]} 3. dxc5 {[%clk 0:02:50]}  e6 {[%clk 0:02:48]} 4. c4 {[%clk 0:02:50]}  Nf6 {[%clk 0:02:46]} 5. cxd5 {[%clk 0:02:44]}  Qxd5 {[%clk 0:02:44]} 6. Bd2 {[%clk 0:02:36]}  Bxc5 {[%clk 0:02:38]} 7. Nc3 {[%clk 0:02:36]}  Qd8 {[%clk 0:02:37]} 8. Nf3 {[%clk 0:02:35]}  O-O {[%clk 0:02:37]} 9. Be2 {[%clk 0:02:28]}  Nc6 {[%clk 0:02:37]} 10. O-O {[%clk 0:02:28]}  e5 {[%clk 0:02:38]} 11. Rc1 {[%clk 0:02:22]}  Be7 {[%clk 0:02:32]} 12. h3 {[%clk 0:02:12]}  e4 {[%clk 0:02:24]} 13. Nh2 {[%clk 0:01:24]}  Bf5 {[%clk 0:02:10]} 14. Qb3 {[%clk 0:01:22]}  Be6 {[%clk 0:01:05]} 15. Qxb7 {[%clk 0:01:14]}  Na5 {[%clk 0:00:57]} 16. Qa6 {[%clk 0:01:12]}  Qxd2 {[%clk 0:00:42]} 17. Qxa5 {[%clk 0:01:11]}  Rab8 {[%clk 0:00:37]} 18. Qxa7 {[%clk 0:01:05]}  Bb4 {[%clk 0:00:36]} 19. Bg4 {[%clk 0:00:49]}  Bc4 {[%clk 0:00:27]} 20. Nxe4 {[%clk 0:00:44]}  Nxe4 {[%clk 0:00:11]} 21. Rxc4 {[%clk 0:00:44]}  Bc5 {[%clk 0:00:04]} 22. Rxc5 {[%clk 0:00:28]}  Nxc5 {[%clk 0:00:05]} 23. Qxc5 {[%clk 0:00:28]}  Qxb2 {[%clk 0:00:05]} 24. a4 {[%clk 0:00:23]}  Ra8 {[%clk 0:00:06]} 25. Bd7 {[%clk 0:00:22]}  Rad8 {[%clk 0:00:02]} 26. Bb5 {[%clk 0:00:21]}  g6 {[%clk 0:00:02]} 27. Nf3 {[%clk 0:00:21]}  Rc8 {[%clk 0:00:02]} 28. Qe5 {[%clk 0:00:20]}  Qa3 {[%clk 0:00:03]} 29. Ng5 {[%clk 0:00:20]}  Rc5 {[%clk 0:00:03]} 30. Qe7 {[%clk 0:00:14]}  Qc3 {[%clk 0:00:03]} 31. Ne4 {[%clk 0:00:14]}  Re5 {[%clk 0:00:02]} 32. Qxf8+ {[%clk 0:00:14]} 1-0


[Site "https://www.chess.com"]